[Event "RUDAR 2 IM 2022"]
[Site "Pozarevac"]
[Date "2022.04.08"]
[Round "8.1"]
[White "Ivanovic, Marko"]
[Black "Milanovic, Slavisa"]
[Result "1-0"]
[ECO "C18"]
[WhiteElo "2302"]
[BlackElo "2296"]
[Annotator "TA"]
[PlyCount "117"]
[EventDate "2022.03.27"]
[EventType "tourn"]
[EventCountry "SRB"]
[SourceTitle "playchess.com"]
[Source "ChessBase"]
[SourceQuality "1"]
[TimeControl "40/5400+30:900+30"]

{[%evp 16,117,2,0,0,0,19,7,12,14,7,0,32,0,21,0,81,72,66,51,108,95,202,189,194,194,202,192,197,202,342,321,411,193,322,287,289,300,399,370,376,243,221,135,264,217,303,298,285,0,304,279,514,506,502,481,494,493,493,477,528,285,260,264,354,354,367,159,342,245,420,339,322,268,279,178,254,238,354,364,343,329,746,673,796,691,688,676,666,668,654,628,610,620,800,570,2784,2750,29989,29990,29990,29991,29994,29995]} 1. e4 {[%emt 0:10:23]} e6 {[%emt 0:00:04]} 2. d4 {[%emt 0:00:28]} d5 {[%emt 0:00:06]} 3. Nc3 {[%emt 0:00:05]} Bb4 {[%emt 0:00:06]} 4. e5 {[%emt 0:00:04]} c5 {[%emt 0:00:06]} 5. a3 {[%emt 0:00:04]} Bxc3+ {[%emt 0:00:29]} 6. bxc3 {[%emt 0:00:05]} Ne7 {[%emt 0:00:30]} 7. Qg4 {[%emt 0:00:05]} Qc7 {[%emt 0:02:47]} 8. Bd3 {[%emt 0:00:09]} c4 {[%emt 0:00:11]} 9. Be2 {[%emt 0:00:05]} ({Wrong is} 9. Qxg7 $2 Rg8 10. Qxh7 cxd3 11. Qxd3 b6 $17) 9... Qa5 {[%emt 0:00:07] C18: French: 3 Nc3 Bb4: Main line: 7 h4 and 7 Qg4.} 10. Bd2 {[%emt 0:00:05]} (10. Qxg7 $2 Qxc3+ 11. Kf1 Rg8 $19) 10... Nf5 {[%emt 0:00:03]} 11. h4 $1 {[%emt 0:00:27][%cal Bh2h4,Bh4h5][%mdl 4] outshines the older 11.Nf3.} Qa4 {[%emt 0:00:18] The position is equal.} 12. h5 {[%emt 0:04:39]} h6 {[%emt 0:00:13]} 13. Nf3 {[%emt 0:38:58]} Qxc2 {[%emt 0:11:09] [#]} 14. Rc1 $146 {[%emt 0:10:52]} ({Predecessor:} 14. O-O Bd7 15. a4 b6 16. Bd1 Qb2 17. Rc1 Nc6 18. Bc2 Rg8 19. Qh3 Na5 20. g4 {½-½ (33) Broekhuizen,A (1919)-Hallqvist,N (1992) FICGS email 2020}) 14... Qa2 {[%emt 0:15:09]} 15. Nh4 {[%emt 0:04:11][%mdl 1024] White has compensation.} Rh7 {[%emt 0:12:01]} (15... Kf8 $11 {remains equal.}) 16. Bd1 {[%emt 0:01:13]} Nc6 {[%emt 0:01:13]} 17. Bc2 {[%emt 0:14:54][%cal Rh4f5]} Nce7 {[%emt 0:01:01]} (17... Qxa3 $14 18. Nxf5 exf5 19. Bxf5 Bxf5 20. Qxf5 Rh8) 18. a4 $16 {[%emt 0:02:04] &Bianco is more active.} Bd7 {[%emt 0:00:50]} (18... Qb2 $16) 19. Qd1 $18 {[%emt 0:00:14]} Rh8 {[%emt 0:03:34]} 20. Ra1 {[%emt 0:02:52]} Qb2 {[%emt 0:00:11] [#]} 21. Rb1 $1 {[%emt 0:00:04]} Qa3 {[%emt 0:00:57]} 22. Nxf5 {[%emt 0:02:13]} exf5 {[%emt 0:04:52]} (22... Nxf5 {was called for.} 23. Rxb7 (23. g4 Ne7 $14) 23... Bc6) 23. Rxb7 {[%emt 0:00:12]} Nc6 {[%emt 0:03:43]} 24. Qf3 {[%emt 0:01:53]} (24. Qb1 $142 Rd8 25. O-O) 24... O-O-O {[%emt 0:05:09]} (24... Qa1+ $142 25. Bd1 O-O-O) 25. Rb1 {[%emt 0:03:36]} Be6 {[%emt 0:01:09]} 26. O-O {[%emt 0:00:25][%cal Bh1f1,Bf1b1,Bb1b2][%mdl 32]} ({Resist} 26. Bxf5 $6 Rd7 $16) 26... g6 {[%emt 0:00:54]} 27. Rb5 {[%emt 0:00:46]} Kc7 {[%emt 0:01:45]} 28. Rfb1 {[%emt 0:00:04]} Rb8 {[%emt 0:00:43]} 29. Rxb8 {[%emt 0:00:04] Dancing on a razor blade.} Nxb8 {[%emt 0:00:39]} (29... Rxb8 $16 30. Rxb8 (30. Bxh6 Rxb1+ 31. Bxb1 Qb3 $11) 30... Kxb8) 30. Bc1 {[%emt 0:00:50]} Qa2 {[%emt 0:03:05]} 31. Rb2 {[%emt 0:01:34]} Qa1 {[%emt 0:00:06]} 32. Rb1 {[%emt 0:00:02]} Qa2 {[%emt 0:00:07] [#]} 33. Qd1 {[%emt 0:00:58]} Nc6 $2 {[%emt 0:01:32]} (33... Nd7 {was worth a try.} 34. Bxh6 gxh5) 34. Rb5 {[%emt 0:00:20]} Rb8 {[%emt 0:09:36]} 35. Bb1 {[%emt 0:00:02]} Qxb1 {[%emt 0:00:49]} 36. Rxb1 {[%emt 0:00:05]} Rxb1 {[%emt 0:00:04]} 37. Qc2 {[%emt 0:00:33]} Ra1 {[%emt 0:03:06]} 38. Kh2 {[%emt 0:00:21]} gxh5 {[%emt 0:00:48]} 39. Bxh6 {[%emt 0:00:15]} Na5 {[%emt 0:00:17]} 40. Bf8 {[%emt 0:00:00]} Nb3 {[%emt 0:00:00]} 41. Bd6+ {[%emt 0:01:36]} (41. f4 $18 {and White stays clearly on top.}) 41... Kb7 $2 {[%emt 0:03:04] A mistake that costs the game.} (41... Kb6 $16 {is a better defense.} 42. Kg3 Rxa4) 42. Qe2 {[%emt 0:00:07]} Rxa4 $2 {[%emt 0:00:55]} (42... Ka6 {was necessary.} 43. Qxh5 f4) 43. Qxh5 {[%emt 0:00:04]} Na5 {[%emt 0:01:17]} 44. f4 {[%emt 0:02:54][%cal Og2g4] Threatens to win with g4!} Ra2 {[%emt 0:00:22]} 45. Kh3 {[%emt 0:00:38][%cal Og2g4] And now g4! would win.} Ra1 {[%emt 0:04:50]} (45... Rc2 $142) 46. Qe2 {[%emt 0:02:06]} Nb3 {[%emt 0:01:11]} (46... Rh1+ $142 47. Kg3 Nb3) 47. Kh4 {[%emt 0:00:26]} a5 {[%emt 0:00:59]} 48. Kg5 {[%emt 0:00:04]} a4 $2 {[%emt 0:00:14]} (48... Kc6 49. Qf2 Rd1) 49. Qb2 {[%emt 0:00:27]} Rg1 {[%emt 0:00:26]} 50. Kf6 {[%emt 0:00:17] Strongly threatening Qa3.} Ra1 {[%emt 0:00:54] Inhibits Qa3.} 51. Ke7 {[%emt 0:00:58]} Kc6 {[%emt 0:00:05]} 52. g3 {[%emt 0:00:12] Intending Qh2 and mate.} Kb5 {[%emt 0:01:24]} 53. Kd8 {[%emt 0:00:23]} Kb6 {[%emt 0:01:12]} 54. Bb4 {[%emt 0:03:38]} Kc6 {[%emt 0:00:27]} 55. Ke7 {[%emt 0:00:37] Hoping for Qh2.} Kc7 {[%emt 0:03:01]} 56. Qh2 {[%emt 0:04:30] Qh8 would kill now.} a3 {[%emt 0:00:36]} 57. Qh8 {[%emt 0:00:03] White mates.} Kb7 {[%emt 0:01:58]} 58. Qe8 {[%emt 0:00:29]} a2 {[%emt 0:00:29]} 59. Qb5+ {[%emt 0:00:05] Weighted Error Value: White=0.42/Black=0.58} 1-0

[Event "RUDAR 2 IM 2022"]
[Site "Pozarevac"]
[Date "2022.04.08"]
[Round "8.2"]
[White "Velikic, Adela"]
[Black "Anishka Vikram"]
[Result "1-0"]
[ECO "A16"]
[WhiteElo "2258"]
[BlackElo "2000"]
[Annotator "TA"]
[PlyCount "165"]
[EventDate "2022.03.27"]
[EventType "tourn"]
[EventCountry "SRB"]
[SourceTitle "playchess.com"]
[Source "ChessBase"]
[SourceQuality "1"]
[TimeControl "40/5400+30:900+30"]

{[%evp 9,165,30,36,22,52,41,42,34,50,48,33,41,40,29,63,59,59,11,66,57,52,45,95,50,80,76,75,75,72,58,87,39,93,85,85,49,46,51,38,45,54,62,73,68,164,132,132,132,132,132,132,132,132,132,132,132,132,132,161,161,161,161,141,112,112,24,45,45,45,45,45,45,45,45,45,45,45,4,45,0,45,45,45,45,45,45,45,45,45,45,45,45,45,45,45,45,82,45,45,45,45,45,45,45,45,0,45,45,45,45,45,45,45,45,45,45,1561,45,45,45,137,137,1314,1054,137,137,137,580,29977,29978,29978,137,137,137,29981,45,45,0,29981,137,29982,137,29982,29979,29979,29980,29980,29981,29981,29982,29994,29995,29995,29996,29996,29997,29997,29998]} 1. c4 {[%emt 0:01:49]} Nf6 {[%emt 0:01:00]} 2. Nc3 {[%emt 0:00:25]} d5 {[%emt 0:00:28]} 3. cxd5 {[%emt 0:00:10]} Nxd5 {[%emt 0:00:07]} 4. Nf3 {[%emt 0:00:09]} Nxc3 {[%emt 0:00:24]} 5. bxc3 {[%emt 0:00:08]} g6 {[%emt 0:00:11]} 6. h4 {[%emt 0:00:09] A16: English Opening: 1...Nf6 with ...d5.} h6 {[%emt 0:07:03]} 7. Rb1 {[%emt 0:01:51]} Bg7 {[%emt 0:01:44]} 8. e4 {[%emt 0:04:32] White is slightly better.} c5 {[%emt 0:08:24] [#]} 9. Bb5+ $146 {[%emt 0:09:46]} ({Predecessor:} 9. d4 b6 10. Bf4 Bg4 11. Qa4+ Bd7 12. Qa3 O-O 13. Be5 Bxe5 14. Nxe5 Nc6 15. Nxc6 Bxc6 {½-½ (26) Muhsen,A (2203)-Seger,R (2393) Pardubice 2013}) 9... Bd7 {[%emt 0:01:27]} 10. O-O {[%emt 0:04:11]} O-O {[%emt 0:06:19]} 11. d4 {[%emt 0:10:01]} cxd4 {[%emt 0:06:15]} 12. cxd4 {[%emt 0:00:14]} Bg4 {[%emt 0:03:13]} 13. Be3 {[%emt 0:05:16]} (13. Be2 $14) 13... Nd7 {[%emt 0:09:39]} (13... e6 $11) 14. Qd2 {[%emt 0:17:42]} (14. Be2 $5 {[%cal Rb1b7]}) 14... Bxf3 {[%emt 0:04:19]} 15. gxf3 {[%emt 0:00:12]} e5 {[%emt 0:21:57]} ({Black should try} 15... Nf6 $14) 16. dxe5 {[%emt 0:15:48] &Bianco is more active.} (16. Bxh6 {seems wilder.} Bxh6 17. Qxh6 exd4 18. h5) 16... Nxe5 {[%emt 0:00:14]} 17. Qxd8 $1 {[%emt 0:00:15]} Rfxd8 {[%emt 0:00:22]} 18. Be2 {[%emt 0:00:47] A strong pair of Bishops.} b6 {[%emt 0:01:50]} 19. Rfc1 {[%emt 0:03:25]} Nd3 {[%emt 0:13:11]} 20. Rc4 {[%emt 0:04:03]} ({Better is} 20. Rc7 $16) 20... Bf6 {[%emt 0:03:08]} (20... Be5 $14) 21. h5 $16 {[%emt 0:06:51]} g5 {[%emt 0:01:00]} 22. Bxd3 {[%emt 0:01:01]} Rxd3 {[%emt 0:00:07]} 23. Ra4 {[%emt 0:00:07][%cal Ob1b6]} Rad8 {[%emt 0:05:11]} 24. Rxa7 {[%emt 0:02:40]} Bd4 {[%emt 0:01:10]} 25. Bxd4 {[%emt 0:01:24]} R8xd4 $14 {[%emt 0:00:11][%mdl 4096] Endgame KRR-KRR} 26. Kg2 {[%emt 0:03:04]} Rd6 {[%emt 0:01:20]} (26... g4 $1 $14) 27. Ra6 {[%emt 0:02:18]} Kg7 {[%emt 0:02:25]} 28. Rbxb6 {[%emt 0:02:20]} Rxb6 {[%emt 0:00:06]} 29. Rxb6 $16 {[%emt 0:00:04] KR-KR} Ra3 {[%emt 0:00:05]} 30. Rb2 {[%emt 0:00:12]} Kf6 {[%emt 0:01:09]} 31. Kg3 {[%emt 0:00:35]} Kg7 {[%emt 0:00:57]} 32. Kg4 {[%emt 0:00:36]} Ra4 {[%emt 0:00:18]} 33. Re2 {[%emt 0:00:39]} Ra5 {[%emt 0:00:43]} 34. f4 {[%emt 0:03:54]} gxf4 {[%emt 0:00:09]} 35. f3 $1 {[%emt 0:00:38]} ({Don't play} 35. Kxf4 Rxh5 36. a4 Ra5 $16) 35... Rg5+ {[%emt 0:00:37]} 36. Kxf4 {[%emt 0:00:37]} Rxh5 {[%emt 0:00:06]} 37. e5 {[%emt 0:00:31]} (37. a4 $16) 37... Rh4+ {[%emt 0:00:41]} 38. Kf5 {[%emt 0:00:12] Rg2+ is the strong threat.} Ra4 {[%emt 0:00:41]} 39. Rg2+ {[%emt 0:00:11]} Kf8 {[%emt 0:00:11]} 40. f4 {[%emt 0:00:00]} Ke7 {[%emt 0:00:00]} 41. Rh2 {[%emt 0:04:48]} Ra5 {[%emt 0:02:46]} 42. Kg4 {[%emt 0:09:12]} Ra4 {[%emt 0:02:25]} 43. Rf2 {[%emt 0:01:14]} Ke6 {[%emt 0:01:55]} 44. Rh2 {[%emt 0:01:08]} Ke7 {[%emt 0:00:10]} 45. Rb2 {[%emt 0:01:22]} Ke6 {[%emt 0:01:39]} 46. Rb6+ {[%emt 0:00:42]} Ke7 {[%emt 0:00:06]} 47. Rxh6 {[%emt 0:00:56]} Rxa2 {[%emt 0:00:03]} 48. Rb6 {[%emt 0:00:19]} Ra5 {[%emt 0:05:13]} 49. Kg5 {[%emt 0:00:20]} Rc5 $1 {[%emt 0:02:12]} 50. Rb7+ {[%emt 0:00:45]} Kf8 $1 {[%emt 0:00:30]} 51. Rd7 {[%emt 0:00:47] And now Kf6 would win.} Ke8 {[%emt 0:00:24]} 52. Ra7 {[%emt 0:00:18] Threatens to win with f5.} Kf8 $1 {[%emt 0:00:10]} 53. Kf6 {[%emt 0:00:45]} Rc6+ {[%emt 0:00:04]} 54. Kf5 {[%emt 0:00:05]} Rb6 {[%emt 0:01:41]} 55. Rd7 {[%emt 0:00:19]} Kg7 {[%emt 0:03:03]} 56. Re7 {[%emt 0:01:00]} Kf8 {[%emt 0:00:13]} 57. Rd7 {[%emt 0:00:12]} Kg7 {[%emt 0:00:05]} 58. Kg4 {[%emt 0:00:25] Hoping for f5.} Re6 {[%emt 0:02:17]} 59. Kf3 {[%emt 0:00:30]} Kf8 {[%emt 0:00:53]} 60. Ke4 {[%emt 0:00:10]} Ra6 {[%emt 0:00:10]} 61. f5 {[%emt 0:00:43]} Ke8 {[%emt 0:00:20]} 62. Rc7 {[%emt 0:00:30]} Rb6 $2 {[%emt 0:00:53][%mdl 8192]} (62... Ra1 $14) 63. Kd5 $2 {[%emt 0:00:23]} ({White must play} 63. Kf4 $1 $18 Rb5 64. Rc8+ Kd7 65. Ra8) 63... Ra6 {[%emt 0:00:24]} 64. f6 {[%emt 0:00:55] aiming for Rc8+.} Ra5+ {[%emt 0:00:27]} ({Black should play} 64... Ra1 $1 $14) 65. Kd6 $1 {[%emt 0:00:11][%cal Rc7c8]} Ra6+ $2 {[%emt 0:00:06][%mdl 8192]} (65... Ra8 $16 66. Re7+ Kf8) 66. Rc6 $1 $18 {[%emt 0:00:07]} Ra8 {[%emt 0:00:17]} 67. Rb6 $1 {[%emt 0:01:11]} Rd8+ {[%emt 0:01:12]} 68. Kc7 $1 {[%emt 0:00:15] White wants to mate with Ra6.} Rd7+ {[%emt 0:00:04]} 69. Kc6 {[%emt 0:00:05]} Rd8 {[%emt 0:00:18]} 70. Rb7 $2 {[%emt 0:01:02]} (70. Ra6 $1 Rc8+ 71. Kd6 Rd8+ 72. Kc7 Rd7+ 73. Kc6 Rd8 74. Ra3 Kf8 75. Kc7) 70... Rc8+ $16 {[%emt 0:00:35]} 71. Rc7 $1 {[%emt 0:00:18][%cal Rc7c8]} Rd8 $2 {[%emt 0:00:45][%mdl 8192]} (71... Ra8 $16 72. Re7+ Kf8) 72. Kb7 $2 {[%emt 0:00:40]} (72. Re7+ $1 Kf8 73. Rd7 Rc8+ 74. Kb7 Re8 75. Kc7 Rxe5 76. Rd8+ Re8 77. Kd7) 72... Rd7 {[%emt 0:00:31] Strongly threatening ...Kd8.} 73. Kc6 $2 {[%emt 0:00:40][%mdl 8192]} (73. Rxd7 {is a self mate.} Kxd7 74. Kb6 Ke6 75. Kc6 Kxe5 76. Kc5 Kxf6 77. Kd4 Kf5 78. Ke3 Kg4 79. Kf2 Kf4 80. Ke2 Kg3 81. Kf1 Kf3 82. Kg1 f5 83. Kf1 f4 84. Ke1 Kg2 85. Ke2 f3+ 86. Kd3 f2 87. Ke4 f1=Q 88. Kd5 Kf3 89. Kd6 Qc4 90. Ke5 Kg4 91. Kd6 Kf5 92. Kd7 Ke5 93. Ke8 Qc7 94. Kf8 Kf6 95. Kg8 Qg7#) (73. Kb6 $14 Rd1 74. Re7+ Kf8 75. Kc7) 73... Rd8 {[%emt 0:00:04]} 74. Re7+ $1 {[%emt 0:00:30]} Kf8 {[%emt 0:00:01]} 75. Ra7 $2 {[%emt 0:00:23]} (75. Rd7 $1 {mates} Rc8+ 76. Kb7 Re8 77. Kc7 Kg8 78. Rd8 Rxd8 79. Kxd8 Kh7 80. e6) 75... Ke8 $2 {[%emt 0:00:13][%mdl 8192]} (75... Kg8 $16 76. Ra1 Re8) 76. Ra4 {[%emt 0:00:43] White mates.} Rc8+ {[%emt 0:00:33]} 77. Kd6 $1 {[%emt 0:00:29]} Rd8+ {[%emt 0:00:10]} 78. Kc7 $1 {[%emt 0:00:10]} Rd7+ {[%emt 0:00:02]} 79. Kc6 {[%emt 0:00:04]} Rd8 {[%emt 0:00:06]} 80. Rh4 {[%emt 0:00:28][%cal Rh4h8]} Rc8+ {[%emt 0:00:22] [#]} 81. Kd6 $1 {[%emt 0:00:16][%cal Rh4h8]} Rd8+ {[%emt 0:00:05] [#]} 82. Kc7 $1 {[%emt 0:00:08][%cal Rh4h8]} Rd7+ {[%emt 0:00:09]} 83. Kc6 {[%emt 0:00:05] Weighted Error Value: White=0.12 (very precise) /Black=0.09 (flawless)} 1-0

[Event "RUDAR 2 IM 2022"]
[Site "Pozarevac"]
[Date "2022.04.08"]
[Round "8.3"]
[White "Andreev, Konstantin"]
[Black "Dudukovic, Nikola"]
[Result "1-0"]
[ECO "C54"]
[WhiteElo "2238"]
[BlackElo "2362"]
[Annotator "TA"]
[PlyCount "85"]
[EventDate "2022.03.27"]
[EventType "tourn"]
[EventCountry "SRB"]
[SourceTitle "playchess.com"]
[Source "ChessBase"]
[SourceQuality "1"]
[TimeControl "40/5400+30:900+30"]

{[%evp 17,85,0,11,-5,0,0,-5,-9,20,5,6,0,29,46,67,42,55,46,81,50,50,41,41,34,69,73,63,62,69,80,154,176,313,103,105,106,108,106,107,73,90,45,65,35,55,52,55,18,53,65,64,89,116,0,189,180,180,142,185,206,464,458,702,736,723,639,29994,29995,29995,29996]} 1. e4 {[%emt 0:00:03]} e5 {[%emt 0:00:05]} 2. Nf3 {[%emt 0:00:06]} Nc6 {[%emt 0:00:04]} 3. Bc4 {[%emt 0:00:06]} Nf6 {[%emt 0:00:05]} 4. d3 {[%emt 0:00:04]} Bc5 {[%emt 0:00:31]} 5. O-O {[%emt 0:00:13]} d6 {[%emt 0:02:17]} 6. c3 {[%emt 0:00:11]} a6 {[%emt 0:01:00]} 7. Bb3 {[%emt 0:00:11]} Ba7 {[%emt 0:00:13]} 8. Nbd2 {[%emt 0:00:18][%cal Bb1d2,Bd2c4,Bc4e3,Be3f5][%mdl 32]} h6 {[%emt 0:00:11]} 9. Nc4 {[%emt 0:02:29]} O-O {[%emt 0:03:08]} 10. h3 {[%emt 0:01:45] C54: Giuoco Piano: 4 c3 Nf6, main lines with 5 d4 and 5 d3.} Ne7 {[%emt 0:03:40]} 11. Ne3 {[%emt 0:02:21]} Ng6 {[%emt 0:14:52]} 12. Re1 {[%emt 0:04:11] The position is equal.} Nh5 {[%emt 0:11:29]} 13. Nf5 {[%emt 0:07:45][%cal Of3e5]} Nhf4 {[%emt 0:01:16]} 14. d4 {[%emt 0:10:14]} Qf6 {[%emt 0:07:28]} 15. Bc2 {[%emt 0:04:59]} Re8 {[%emt 0:15:19]} 16. Kh2 {[%emt 0:05:12] [#]} Ne6 $146 {[%emt 0:23:05]} ({Predecessor:} 16... Ne7 17. Bxf4 exf4 18. e5 dxe5 19. dxe5 Qe6 20. N3d4 Bxd4 21. Nxd4 Qb6 22. b4 Be6 {0-1 (44) Jotic,V (2363)-Karaklajic,N (2378) Subotica 1999}) 17. Be3 {[%emt 0:02:21]} Ne7 {[%emt 0:02:39]} 18. Nxe7+ {[%emt 0:25:42]} Rxe7 {[%emt 0:00:38]} 19. Qd2 {[%emt 0:00:35]} Re8 {[%emt 0:02:50]} 20. Rad1 {[%emt 0:01:42]} g5 {[%emt 0:00:27]} 21. Ng1 {[%emt 0:01:50]} Nf4 {[%emt 0:00:24]} 22. g3 {[%emt 0:00:30] And now dxe5 would win.} Ng6 {[%emt 0:00:17]} 23. Rf1 {[%emt 0:00:27]} Qg7 {[%emt 0:01:27]} (23... exd4 $142 24. cxd4 c5) 24. f4 $1 $16 {[%emt 0:01:25]} f6 {[%emt 0:01:26]} (24... exd4 $142 25. cxd4 c5) 25. dxe5 $2 {[%emt 0:02:11]} (25. fxg5 fxg5 26. Bb3+ Be6 $14) (25. Bb3+ $1 $18 Kh8 26. fxg5 hxg5 27. Rxf6 Qxf6 28. Bxg5) 25... Bxe3 {[%emt 0:00:22]} 26. Qxe3 {[%emt 0:00:24]} dxe5 {[%emt 0:00:05]} (26... gxf4 $2 27. gxf4 fxe5 28. Ne2 $18 (28. Bb3+ Be6 $16)) 27. Bb3+ {[%emt 0:00:49]} Kh8 {[%emt 0:00:12]} (27... Be6 $2 28. Bxe6+ Rxe6 29. f5 $18) 28. fxg5 {[%emt 0:02:01]} hxg5 {[%emt 0:00:06]} 29. Rf2 {[%emt 0:01:32][%cal Bf1f2,Bf2d2,Bd2d6][%mdl 32]} a5 $1 {[%emt 0:01:02]} 30. Rfd2 {[%emt 0:13:22] &Bianco is much more active.} (30. Nf3 {is interesting.} a4 31. Bc4 Qh6 32. Kh1) 30... Nf8 {[%emt 0:00:54]} 31. Ba4 $36 {[%emt 0:01:32][%mdl 2048] White has some pressure.} c6 {[%emt 0:00:16]} 32. Rd6 {[%emt 0:01:18]} (32. Nf3 {seems wilder.} Qh6 33. Rh1 Be6 34. Kg2) 32... Be6 {[%emt 0:01:20]} 33. Bb3 {[%emt 0:00:15]} Bxb3 {[%emt 0:00:39]} 34. axb3 {[%emt 0:00:03]} Qf7 {[%emt 0:00:22] [#]} 35. Ne2 {[%emt 0:01:24]} (35. Nf3 $1 $16) 35... Kg7 $2 {[%emt 0:00:53] [#]} (35... Qxb3 36. Qf3 Nh7 37. Rd7 $16) (35... Ne6 $11 {and Black has nothing to worry.}) 36. g4 $1 $18 {[%emt 0:00:05]} Ne6 {[%emt 0:01:28]} 37. Ng3 {[%emt 0:00:35] Threatens to win with Rd7.} Kh8 {[%emt 0:02:46]} 38. Qb6 {[%emt 0:03:04] Prevents Rad8.} Nf4 $2 {[%emt 0:01:55]} (38... Rac8 39. Nh5 (39. Qxa5 Nf4 $16) (39. Rd7 Qf8 $16) 39... Rb8) 39. Nf5 {[%emt 0:00:58]} a4 {[%emt 0:01:05]} (39... Qh7 $2 40. h4 Ra6 41. Qf2 $18) (39... Rab8 $142 40. Rd7 Qg8 41. Qxa5 (41. Rxb7 Rxb7 42. Qxb7 Qh7 $16) 41... Ne6) 40. Rd7 {[%emt 0:00:00]} Qg8 {[%emt 0:00:00]} 41. Rg7 {[%emt 0:01:36]} Qxb3 {[%emt 0:01:28]} 42. Qxb3 {[%emt 0:00:10]} axb3 {[%emt 0:00:06]} 43. Rdd7 {[%emt 0:00:03] Weighted Error Value: White=0.20 (precise) /Black=0.49} 1-0